fUSD/lending_fUSD_20250217
["ID","MTS","AMOUNT","RATE_DAILY","PERIOD"]
[353347507,1739789433446,-1000.0,0.00012062,2]
[353347509,1739789433456,-150.0,0.00012107,2]
[353347511,1739789433467,-4843.46158354,0.0001214,2]
[353347516,1739789433507,-1024.56,0.0001214,2]
[353347519,1739789433519,-321.72513921,0.0001214,2]
[353347521,1739789433530,-413.89043632,0.0001214,2]
[353347525,1739789433565,-3355.00284093,0.0001214,2]
[353347528,1739789433576,-547.37303074,0.00012241,2]
[353347979,1739789438203,-375.0,0.00012241,2]
[353347981,1739789438214,-77.62696926,0.00012241,2]
[353347983,1739789438223,-545.28058995,0.00012329,2]
[353348000,1739789438368,-574.82241005,0.00012329,2]
[353348002,1739789438378,-150.0,0.00012329,2]
[353348004,1739789438387,-569.0,0.00012329,2]
[353348006,1739789438396,-638.0,0.00012329,2]
[353348008,1739789438405,-949.057,0.00012329,2]
[353348010,1739789438415,-157.55,0.00012329,2]
[353348012,1739789438425,-908.0,0.00012329,2]
[353348014,1739789438434,-539.0,0.00012329,2]
[353348016,1739789438443,-2261.52,0.00012329,2]
[353348018,1739789438452,-1008.0,0.00012329,2]
[353348019,1739789438461,-3917.0,0.00012329,2]
[353348021,1739789438471,-150.0,0.00012329,2]
[353348024,1739789438480,-497.45,0.00012329,2]
[353348025,1739789438489,-507.06,0.00012329,2]
[353348028,1739789438498,-506.89,0.00012329,2]
[353348029,1739789438507,-492.46,0.00012329,2]
[353348031,1739789438516,-507.35,0.00012329,2]
[353348033,1739789438526,-150.0,0.00012348,2]
[353348035,1739789438535,-575.78,0.00012478,2]
[353348037,1739789438544,-1000.0,0.00012545,2]
[353348039,1739789438554,-1000.0,0.0001273,2]
[353348041,1739789438563,-173.63,0.00012739,2]
[353348043,1739789438572,-1551.36,0.0001274,2]
[353348045,1739789438581,-150.0,0.00012741,2]
[353348047,1739789438590,-491.98655844,0.00012762,2]
[353348049,1739789438600,-1000.0,0.00012786,2]
[353348051,1739789438609,-500.0,0.00012798,2]
[353348053,1739789438618,-1000.0,0.00012798,2]
[353348055,1739789438627,-800.0,0.00012798,2]
[353348057,1739789438636,-150.41,0.00012829,2]
[353348059,1739789438645,-150.0,0.00012889,2]
[353348061,1739789438654,-150.0,0.00012953,2]
[353348063,1739789438664,-48000.0,0.00013,2]
[353348065,1739789438673,-150.0,0.00013033,2]
[353348067,1739789438682,-150.0,0.00013047,2]
[353348069,1739789438691,-150.0,0.00013066,2]
[353348071,1739789438700,-150.0,0.00013088,2]
[353348072,1739789438709,-150.0,0.00013135,2]
[353348073,1739789438718,-150.0,0.00013143,2]
[353348074,1739789438727,-150.0,0.00013166,2]
[353348075,1739789438737,-150.0,0.0001319,2]
[353348076,1739789438746,-1000.0,0.00013215,2]
[353348077,1739789438756,-150.0,0.00013233,2]
[353348078,1739789438765,-150.0,0.00013285,2]
[353348080,1739789438775,-150.0,0.000133,2]
[353348082,1739789438784,-150.0,0.00013303,2]
[353348084,1739789438793,-1000.0,0.00013345,2]
[353348086,1739789438802,-150.0,0.00013356,2]
[353348088,1739789438811,-150.0,0.00013404,2]
[353348090,1739789438820,-150.0,0.00013449,2]
[353348092,1739789438829,-150.0,0.00013451,2]
[353348094,1739789438838,-150.0,0.00013455,2]
[353348096,1739789438848,-150.0,0.00013481,2]
[353348098,1739789438857,-150.0,0.00013484,2]
[353348100,1739789438866,-1000.0,0.00013494,2]
[353348102,1739789438875,-522.0,0.00013504,2]
[353348104,1739789438884,-1789.8005857,0.00013504,2]
[353348106,1739789438893,-497.78,0.00013504,2]
[353348108,1739789438902,-508.97,0.00013504,2]
[353348110,1739789438911,-1000.0,0.00013507,2]
[353348112,1739789438922,-150.0,0.00013529,2]
[353348114,1739789438933,-1000.0,0.0001353,2]
[353348116,1739789438942,-3119.8529268,0.00013567,2]
[353348118,1739789438952,-150.0,0.00013575,2]
[353348120,1739789438961,-1000.0,0.00013596,2]
[353348122,1739789438970,-3119.85292674,0.00013598,2]
[353348124,1739789438979,-167.90367455,0.00013598,2]
[353348126,1739789438988,-184.33406832,0.00013598,2]
[353348127,1739789438997,-270.43847373,0.000136,2]
[353348130,1739789439008,-2921.601,0.000136,2]
[353348131,1739789439017,-172.57,0.000136,2]
[353348133,1739789439027,-1000.0,0.000136,2]
[353348136,1739789439037,-1000.0,0.00013627,2]
[353348138,1739789439046,-3119.85292674,0.00013629,2]
[353348140,1739789439055,-150.0,0.0001363,2]
[353348141,1739789439064,-150.0,0.00013637,2]
[353348143,1739789439073,-150.0,0.0001365,2]
[353348145,1739789439082,-3119.85292674,0.0001366,2]
[353348147,1739789439091,-1000.0,0.00013667,2]
[353348149,1739789439101,-200.0,0.00013669,2]
[353348151,1739789439109,-500.0,0.0001367,2]
[353348153,1739789439118,-2000.0,0.0001367,2]
[353348155,1739789439127,-500.0,0.0001367,2]
[353348157,1739789439136,-200.0,0.0001367,2]
[353348159,1739789439145,-4000.0,0.0001368,2]
[353348161,1739789439154,-198.62366345,0.0001369,2]
[353348163,1739789439164,-3119.85292674,0.00013691,2]
[353348165,1739789439173,-150.0,0.00013691,2]
[353348167,1739789439183,-150.0,0.00013695,2]
[353348169,1739789439192,-156.067172,0.00013698,2]
[353348171,1739789439201,-819.901746,0.00013698,2]
[353348173,1739789439210,-966.478224,0.00013698,2]
[353348175,1739789439219,-163.607122,0.00013698,2]
[353348177,1739789439228,-177.879401,0.00013698,2]
[353348179,1739789439237,-162.766026,0.00013698,2]
[353348181,1739789439246,-152.468055,0.00013698,2]
[353348183,1739789439256,-189.893699,0.00013698,2]
[353348185,1739789439265,-151.0,0.00013698,2]
[353348187,1739789439274,-151.0,0.00013698,2]
[353348189,1739789439283,-177.879399,0.00013698,2]
[353348191,1739789439292,-189.893697,0.00013698,2]
[353348193,1739789439301,-151.0,0.00013698,2]
[353348195,1739789439310,-260.529174,0.00013698,2]
[353348197,1739789439319,-151.0,0.00013698,2]
[353348199,1739789439328,-151.0,0.00013698,2]
[353348201,1739789439337,-260.529172,0.00013698,2]
[353348203,1739789439346,-268.079629,0.00013698,2]
[353348205,1739789439355,-160.450785,0.00013698,2]
[353348207,1739789439364,-151.0,0.00013698,2]
[353348209,1739789439373,-200.0,0.00013698,2]
[353348211,1739789439383,-500.0,0.00013698,2]
[353348213,1739789439392,-500.0,0.00013698,2]
[353348215,1739789439400,-505.45602444,0.00013698,2]
[353348217,1739789439409,-500.0,0.00013698,2]
[353348219,1739789439419,-507.06963681,0.00013698,2]
[353348221,1739789439428,-505.53185347,0.00013698,2]
[353348223,1739789439436,-500.0,0.00013698,2]
[353348225,1739789439446,-500.0,0.00013698,2]
[353348227,1739789439455,-500.0,0.00013698,2]
[353348229,1739789439463,-500.0,0.00013698,2]
[353348231,1739789439472,-500.0,0.00013698,2]
[353348233,1739789439482,-500.0,0.00013698,2]
[353348235,1739789439491,-500.0,0.00013698,2]
[353348237,1739789439500,-500.0,0.00013698,2]
[353348239,1739789439509,-353.12578562,0.00013698,2]
[353348241,1739789439518,-500.0,0.00013698,2]
[353348243,1739789439528,-508.67113656,0.00013698,2]
[353348245,1739789439537,-500.0,0.00013698,2]
[353348247,1739789439546,-506.55930212,0.00013698,2]
[353348248,1739789439555,-500.0,0.00013698,2]
[353348250,1739789439563,-500.0,0.00013698,2]
[353348252,1739789439572,-500.0,0.00013698,2]
[353348254,1739789439581,-500.0,0.00013698,2]
[353348256,1739789439590,-500.0,0.00013698,2]
[353348258,1739789439599,-500.0,0.00013698,2]
[353348260,1739789439608,-500.0,0.00013698,2]
[353348262,1739789439617,-500.0,0.00013698,2]
[353348264,1739789439626,-500.0,0.00013698,2]
[353348266,1739789439635,-500.0,0.00013698,2]
[353348268,1739789439644,-500.0,0.00013698,2]
[353348270,1739789439653,-500.0,0.00013698,2]
[353348272,1739789439663,-500.0,0.00013698,2]
[353348274,1739789439672,-500.0,0.00013698,2]
[353348276,1739789439682,-500.0,0.00013698,2]
[353348278,1739789439691,-1200.0,0.00013698,2]
[353348280,1739789439700,-500.0,0.00013698,2]
[353348282,1739789439709,-501.58831692,0.00013698,2]
[353348284,1739789439718,-501.61343424,0.00013698,2]
[353348286,1739789439727,-500.0,0.00013698,2]
[353348288,1739789439737,-500.0,0.00013698,2]
[353348290,1739789439746,-500.0,0.00013698,2]
[353348292,1739789439755,-500.0,0.00013698,2]
[353348294,1739789439763,-500.0,0.00013698,2]
[353348296,1739789439772,-500.0,0.00013698,2]
[353348298,1739789439781,-500.0,0.00013698,2]
[353348300,1739789439790,-500.0,0.00013698,2]
[353348302,1739789439799,-500.0,0.00013698,2]
[353348304,1739789439808,-500.0,0.00013698,2]
[353348306,1739789439817,-500.0,0.00013698,2]
[353348308,1739789439826,-500.0,0.00013698,2]
[353348309,1739789439835,-500.0,0.00013698,2]
[353348310,1739789439844,-500.0,0.00013698,2]
[353348311,1739789439853,-500.0,0.00013698,2]
[353348312,1739789439862,-500.0,0.00013698,2]
[353348313,1739789439871,-500.0,0.00013698,2]
[353348314,1739789439880,-744.57,0.00013698,2]
[353348315,1739789439890,-500.0,0.00013698,2]
[353348317,1739789439899,-500.0,0.00013698,2]
[353348318,1739789439908,-500.0,0.00013698,2]
[353348320,1739789439920,-500.0,0.00013698,2]
[353348322,1739789439934,-500.0,0.00013698,2]
[353348324,1739789439943,-722.14,0.00013698,2]
[353348326,1739789439953,-500.0,0.00013698,2]
[353348328,1739789439962,-500.0,0.00013698,2]
[353348330,1739789439973,-160.450786,0.00013698,2]
[353348333,1739789439982,-500.0,0.00013698,2]
[353348335,1739789439991,-500.0,0.00013698,2]
[353348338,1739789440002,-500.0,0.00013698,2]
[353348340,1739789440011,-500.0,0.00013698,2]
[353348342,1739789440021,-500.0,0.00013698,2]
[353348344,1739789440030,-500.0,0.00013698,2]
[353348346,1739789440040,-500.0,0.00013698,2]
[353348348,1739789440049,-733.35,0.00013698,2]
[353348350,1739789440057,-513.47020687,0.00013698,2]
[353348352,1739789440066,-500.0,0.00013698,2]
[353348354,1739789440075,-500.0,0.00013698,2]
[353348356,1739789440084,-500.0,0.00013698,2]
[353348358,1739789440093,-500.0,0.00013698,2]
[353348360,1739789440102,-296.58413976,0.00013698,2]
[353348362,1739789440111,-500.0,0.00013698,2]
[353348364,1739789440121,-500.0,0.00013698,2]
[353348366,1739789440130,-500.0,0.00013698,2]
[353348368,1739789440140,-500.0,0.00013698,2]
[353348369,1739789440149,-158.178425,0.00013698,2]
[353348372,1739789440159,-500.0,0.00013698,2]
[353348375,1739789440171,-500.0,0.00013698,2]
[353348378,1739789440180,-500.0,0.00013698,2]
[353348380,1739789440190,-500.0,0.00013698,2]
[353348382,1739789440199,-514.75,0.00013698,2]
[353348384,1739789440208,-500.0,0.00013698,2]
[353348386,1739789440217,-500.0,0.00013698,2]
[353348388,1739789440227,-164.358342,0.00013698,2]
[353348389,1739789440237,-500.0,0.00013698,2]
[353348392,1739789440246,-500.0,0.00013698,2]
[353348394,1739789440255,-500.0,0.00013698,2]
[353348395,1739789440265,-503.90275137,0.00013698,2]
[353348398,1739789440274,-500.0,0.00013698,2]
[353348400,1739789440284,-500.0,0.00013698,2]
[353348402,1739789440292,-500.0,0.00013698,2]
[353348403,1739789440302,-500.0,0.00013698,2]
[353348405,1739789440311,-513.04803512,0.00013698,2]
[353348407,1739789440320,-500.0,0.00013698,2]
[353348409,1739789440329,-500.0,0.00013698,2]
[353348411,1739789440339,-500.0,0.00013698,2]
[353348413,1739789440348,-500.0,0.00013698,2]
[353348415,1739789440357,-502.80489093,0.00013698,2]
[353348417,1739789440366,-504.10631002,0.00013698,2]
[353348419,1739789440375,-650.14,0.00013698,2]
[353348421,1739789440385,-505.55036841,0.00013698,2]
[353348423,1739789440394,-500.0,0.00013698,2]
[353348425,1739789440403,-500.0,0.00013698,2]
[353348427,1739789440412,-500.0,0.00013698,2]
[353348429,1739789440421,-508.60528438,0.00013698,2]
[353348431,1739789440430,-275.45890628,0.00013698,2]
[353348433,1739789440439,-500.0,0.00013698,2]
[353348435,1739789440448,-500.0,0.00013698,2]
[353348437,1739789440458,-492.49051196,0.00013698,2]
[353348439,1739789440467,-500.0,0.00013698,2]
[353348441,1739789440476,-500.0,0.00013698,2]
[353348443,1739789440485,-504.90594684,0.00013698,2]
[353348445,1739789440494,-500.0,0.00013698,2]
[353348447,1739789440503,-500.0,0.00013698,2]
[353348449,1739789440512,-561.34,0.00013698,2]
[353348451,1739789440521,-500.0,0.00013698,2]
[353348453,1739789440531,-504.11825825,0.00013698,2]
[353348455,1739789440540,-514.50694143,0.00013698,2]
[353348457,1739789440549,-350.02350887,0.00013698,2]
[353348501,1739789441296,-150.0,0.00012329,2]
[353348502,1739789441306,-421.58340366,0.00013281,2]
[353348503,1739789441317,-2.03659434,0.00013698,2]
[353348504,1739789441328,-147.93989679,0.00013698,2]
[353348505,1739789441338,-500.0,0.00013698,2]
[353348506,1739789441347,-696.69400322,0.00013698,2]
[353348507,1739789441364,-337.99599678,0.00013698,2]
[353348508,1739789441374,-12.05873482,0.00013698,2]
[353348509,1739789441386,-487.94126518,0.00013698,2]
[353348510,1739789441395,-500.0,0.00013698,2]
[353348511,1739789441404,-500.0,0.00013698,2]
[353348512,1739789441414,-254.17101461,0.00013698,2]
[353348513,1739789441423,-500.0,0.00013698,2]
[353348514,1739789441432,-500.0,0.00013698,2]
[353348515,1739789441442,-500.0,0.00013698,2]
[353348516,1739789441451,-500.0,0.00013698,2]
[353348517,1739789441461,-500.0,0.00013698,2]
[353348518,1739789441470,-761.11,0.00013698,2]
[353348519,1739789441481,-500.0,0.00013698,2]
[353348520,1739789441491,-508.03457796,0.00013698,2]
[353348521,1739789441500,-500.0,0.00013698,2]
[353348522,1739789441510,-269.47675754,0.00013698,2]
[353348523,1739789441519,-500.0,0.00013698,2]
[353348524,1739789441528,-500.0,0.00013698,2]
[353348525,1739789441538,-500.0,0.00013698,2]
[353348526,1739789441547,-500.0,0.00013698,2]
[353348527,1739789441557,-500.0,0.00013698,2]
[353348528,1739789441566,-503.2225276,0.00013698,2]
[353348529,1739789441575,-500.0,0.00013698,2]
[353348530,1739789441584,-500.0,0.00013698,2]
[353348531,1739789441593,-500.0,0.00013698,2]
[353348532,1739789441602,-500.0,0.00013698,2]
[353348533,1739789441611,-500.0,0.00013698,2]
[353348534,1739789441620,-732.52,0.00013698,2]
[353348535,1739789441629,-500.0,0.00013698,2]
[353348536,1739789441639,-500.0,0.00013698,2]
[353348537,1739789441648,-970.81,0.00013698,2]
[353348538,1739789441658,-721.4,0.00013698,2]
[353348539,1739789441668,-721.4,0.00013698,2]
[353348540,1739789441677,-721.4,0.00013698,2]
[353348541,1739789441687,-500.0,0.00013698,2]
[353348542,1739789441696,-721.4,0.00013698,2]
[353348543,1739789441706,-721.4,0.00013698,2]
[353348544,1739789441716,-266.06701402,0.00013698,2]
[353348545,1739789441726,-721.4,0.00013698,2]
[353348546,1739789441735,-721.4,0.00013698,2]
[353348547,1739789441744,-721.4,0.00013698,2]
[353348549,1739789441754,-860.2,0.00013698,2]
[353348551,1739789441763,-500.0,0.00013698,2]
[353348553,1739789441772,-500.0,0.00013698,2]
[353348555,1739789441781,-500.0,0.00013698,2]
[353348556,1739789441790,-669.57,0.00013698,2]
[353348559,1739789441800,-297.53824576,0.00013698,2]
[353348560,1739789441809,-500.0,0.00013698,2]
[353348563,1739789441818,-500.0,0.00013698,2]
[353348565,1739789441827,-554.9,0.00013698,2]
[353348567,1739789441837,-915.31,0.00013698,2]
[353348569,1739789441846,-554.9,0.00013698,2]
[353348571,1739789441855,-554.9,0.00013698,2]
[353348573,1739789441865,-500.0,0.00013698,2]
[353348574,1739789441874,-554.9,0.00013698,2]
[353348576,1739789441883,-554.9,0.00013698,2]
[353348578,1739789441893,-554.9,0.00013698,2]
[353348580,1739789441902,-500.0,0.00013698,2]
[353348581,1739789441911,-554.9,0.00013698,2]
[353348582,1739789441921,-554.9,0.00013698,2]
[353348583,1739789441933,-500.0,0.00013698,2]
[353348584,1739789441942,-500.0,0.00013698,2]
[353348585,1739789441952,-500.0,0.00013698,2]
[353348586,1739789441961,-928.85,0.00013698,2]
[353348588,1739789441971,-614.34,0.00013698,2]
[353348590,1739789441981,-687.21,0.00013698,2]
[353348592,1739789441990,-508.82943676,0.00013698,2]
[353348594,1739789441999,-500.0,0.00013698,2]
[353348596,1739789442010,-984.35,0.00013698,2]
[353348598,1739789442020,-500.0,0.00013698,2]
[353348600,1739789442029,-501.77330457,0.00013698,2]
[353348602,1739789442038,-1215.79,0.00013698,2]
[353348604,1739789442047,-500.0,0.00013698,2]
[353348606,1739789442056,-500.0,0.00013698,2]
[353348608,1739789442065,-500.0,0.00013698,2]
[353348610,1739789442075,-500.0,0.00013698,2]
[353348612,1739789442084,-500.0,0.00013698,2]
[353348614,1739789442093,-500.0,0.00013698,2]
[353348616,1739789442102,-500.0,0.00013698,2]
[353348618,1739789442111,-500.0,0.00013698,2]
[353348620,1739789442120,-500.0,0.00013698,2]
[353348622,1739789442129,-500.0,0.00013698,2]
[353348624,1739789442138,-441.93123247,0.00013698,2]
[353348626,1739789442146,-500.0,0.00013698,2]
[353348628,1739789442155,-500.0,0.00013698,2]
[353348630,1739789442165,-500.0,0.00013698,2]
[353348632,1739789442174,-500.0,0.00013698,2]
[353348634,1739789442183,-500.0,0.00013698,2]
[353348636,1739789442192,-500.0,0.00013698,2]
[353348638,1739789442201,-1376.26,0.00013698,2]
[353348640,1739789442210,-532.91,0.00013698,2]
[353348642,1739789442219,-500.0,0.00013698,2]
[353348644,1739789442228,-500.0,0.00013698,2]
[353348646,1739789442237,-500.0,0.00013698,2]
[353348647,1739789442247,-500.0,0.00013698,2]
[353348649,1739789442257,-500.0,0.00013698,2]
[353348651,1739789442266,-500.0,0.00013698,2]
[353348653,1739789442276,-500.0,0.00013698,2]
[353348655,1739789442285,-500.0,0.00013698,2]
[353348657,1739789442294,-500.0,0.00013698,2]
[353348659,1739789442302,-772.83,0.00013698,2]
[353348661,1739789442311,-500.0,0.00013698,2]
[353348663,1739789442321,-500.0,0.00013698,2]
[353348665,1739789442329,-500.0,0.00013698,2]
[353348667,1739789442338,-500.0,0.00013698,2]
[353348669,1739789442347,-500.0,0.00013698,2]
[353348671,1739789442357,-500.0,0.00013698,2]
[353348673,1739789442366,-890.09,0.00013698,2]
[353348675,1739789442375,-759.71,0.00013698,2]
[353348677,1739789442384,-721.81,0.00013698,2]
[353348679,1739789442393,-500.0,0.00013698,2]
[353348681,1739789442402,-1232.27,0.00013698,2]
[353348683,1739789442411,-277.16723324,0.00013698,2]
[353348687,1739789442441,-222.83276676,0.00013698,2]
[353348689,1739789442450,-238.75123324,0.00013698,2]
[353348691,1739789442461,-261.24876676,0.00013698,2]
[353348693,1739789442470,-337.26576492,0.00013698,2]
[353348696,1739789442481,-162.73423508,0.00013698,2]
[353348698,1739789442490,-502.2019396,0.00013698,2]
[353348700,1739789442501,-40.26399954,0.00013698,2]
[353348702,1739789442513,-299.89956351,0.00013698,2]
[353348704,1739789442524,-159.83643695,0.00013698,2]
[353348706,1739789442533,-234.20424314,0.00013698,2]
[353348711,1739789442569,-269.10068929,0.00013698,2]
[353348713,1739789442578,-500.0,0.00013698,2]
[353348715,1739789442587,-253.35968058,0.00013698,2]
[353348717,1739789442596,-110.58963013,0.00013698,2]
[353348720,1739789442619,-387.328,0.00013698,2]
[353348782,1739789443228,-3.22895799,0.00013698,2]
[353348784,1739789443237,-500.0,0.00013698,2]
[353348786,1739789443246,-646.22,0.00013698,2]
[353348788,1739789443255,-948.13,0.00013698,2]
[353348790,1739789443266,-557.83,0.00013698,2]
[353348792,1739789443275,-500.0,0.00013698,2]
[353348794,1739789443283,-570.8,0.00013698,2]
[353348796,1739789443292,-500.0,0.00013698,2]
[353348798,1739789443302,-500.0,0.00013698,2]
[353348800,1739789443311,-443.99741173,0.00013698,2]
[353348802,1739789443322,-500.0,0.00013698,2]
[353348804,1739789443331,-500.0,0.00013698,2]
[353348806,1739789443340,-955.61,0.00013698,2]
[353348807,1739789443349,-500.0,0.00013698,2]
[353348809,1739789443359,-1213.73,0.00013698,2]
[353348810,1739789443368,-503.11773891,0.00013698,2]
[353348812,1739789443378,-748.41,0.00013698,2]
[353348813,1739789443387,-500.0,0.00013698,2]
[353348815,1739789443396,-500.0,0.00013698,2]
[353348816,1739789443404,-656.23,0.00013698,2]
[353348818,1739789443413,-1428.53,0.00013698,2]
[353348819,1739789443423,-903.78,0.00013698,2]
[353348820,1739789443432,-500.0,0.00013698,2]
[353348822,1739789443441,-500.0,0.00013698,2]
[353348823,1739789443450,-615.37,0.00013698,2]
[353348825,1739789443459,-776.79,0.00013698,2]
[353348826,1739789443469,-957.01,0.00013698,2]
[353348828,1739789443478,-500.0,0.00013698,2]
[353348830,1739789443487,-500.0,0.00013698,2]
[353348831,1739789443496,-501.19447747,0.00013698,2]
[353348833,1739789443505,-500.0,0.00013698,2]
[353348834,1739789443514,-500.0,0.00013698,2]
[353348836,1739789443523,-1259.59,0.00013698,2]
[353348837,1739789443532,-500.0,0.00013698,2]
[353348838,1739789443541,-1075.1,0.00013698,2]
[353348840,1739789443550,-500.0,0.00013698,2]
[353348842,1739789443560,-500.0,0.00013698,2]
[353348843,1739789443569,-701.2,0.00013698,2]
[353348845,1739789443578,-673.38,0.00013698,2]
[353348846,1739789443587,-500.0,0.00013698,2]
[353348848,1739789443597,-544.42,0.00013698,2]
[353348849,1739789443606,-500.0,0.00013698,2]
[353348851,1739789443615,-500.0,0.00013698,2]
[353348853,1739789443625,-602.1,0.00013698,2]
[353348854,1739789443634,-500.0,0.00013698,2]
[353348856,1739789443643,-500.0,0.00013698,2]
[353348858,1739789443652,-1222.88,0.00013698,2]
[353348859,1739789443661,-500.0,0.00013698,2]
[353348861,1739789443671,-500.0,0.00013698,2]
[353348863,1739789443680,-500.0,0.00013698,2]
[353348864,1739789443689,-1165.08,0.00013698,2]
[353348866,1739789443698,-500.0,0.00013698,2]
[353348867,1739789443707,-315.13721711,0.00013698,7]
[353348870,1739789443716,-500.0,0.00013698,2]
[353348873,1739789443725,-500.0,0.00013698,2]
[353348874,1739789443734,-500.0,0.00013698,2]
[353348878,1739789443744,-500.0,0.00013698,2]
[353348880,1739789443754,-500.0,0.00013698,2]
[353348881,1739789443763,-500.0,0.00013698,2]
[353348883,1739789443772,-572.09,0.00013698,2]
[353348884,1739789443781,-500.0,0.00013698,2]
[353348886,1739789443790,-500.0,0.00013698,2]
[353348888,1739789443799,-653.36,0.00013698,2]
[353348889,1739789443808,-500.0,0.00013698,2]
[353348891,1739789443817,-500.0,0.00013698,2]
[353348893,1739789443825,-500.0,0.00013698,2]
[353348895,1739789443835,-785.54,0.00013698,2]
[353348897,1739789443843,-1020.94,0.00013698,2]
[353348899,1739789443853,-736.91,0.00013698,2]
[353348901,1739789443862,-800.41,0.00013698,2]
[353348903,1739789443871,-500.0,0.00013698,2]
[353348905,1739789443880,-500.0,0.00013698,2]
[353348907,1739789443889,-500.0,0.00013698,2]
[353348909,1739789443899,-401.60168627,0.00013698,2]
[353348911,1739789443908,-331.57464305,0.00013698,2]
[353348913,1739789443917,-500.0,0.00013698,2]
[353348915,1739789443929,-500.0,0.00013698,2]
[353348917,1739789443938,-500.43356933,0.00013698,2]
[353348919,1739789443947,-500.0,0.00013698,2]
[353348920,1739789443956,-501.48292972,0.00013698,2]
[353348921,1739789443966,-500.0,0.00013698,2]
[353348922,1739789443976,-501.32080227,0.00013698,2]
[353348923,1739789443985,-2112.66,0.00013698,2]
[353348924,1739789443995,-500.0,0.00013698,2]
[353348925,1739789444007,-500.0,0.00013698,2]
[353348926,1739789444016,-500.0,0.00013698,2]
[353348927,1739789444026,-1034.21,0.00013698,2]
[353348928,1739789444035,-501.68654817,0.00013698,2]
[353348929,1739789444046,-541.78,0.00013698,2]
[353348930,1739789444055,-1142.07,0.00013698,2]
[353348931,1739789444064,-500.0,0.00013698,2]
[353348932,1739789444073,-500.0,0.00013698,2]
[353348933,1739789444082,-500.9204697,0.00013698,2]
[353348934,1739789444091,-687.64,0.00013698,2]
[353348935,1739789444100,-500.0,0.00013698,2]
[353348937,1739789444109,-586.54,0.00013698,2]
[353348938,1739789444119,-500.0,0.00013698,2]
[353348940,1739789444129,-500.0,0.00013698,2]
[353348942,1739789444139,-512.00067955,0.00013698,2]
[353348944,1739789444149,-500.0,0.00013698,2]
[353348946,1739789444158,-561.86,0.00013698,2]
[353348948,1739789444167,-500.0,0.00013698,2]
[353348950,1739789444176,-500.0,0.00013698,2]
[353348952,1739789444185,-500.0,0.00013698,2]
[353348954,1739789444194,-500.0,0.00013698,2]
[353348956,1739789444203,-500.0,0.00013698,2]
[353348957,1739789444212,-500.0,0.00013698,2]
[353348959,1739789444221,-500.0,0.00013698,2]
[353348961,1739789444231,-500.0,0.00013698,2]
[353348963,1739789444240,-500.0,0.00013698,2]
[353348965,1739789444249,-500.0,0.00013698,2]
[353348967,1739789444260,-500.0,0.00013698,2]
[353348969,1739789444268,-501.8990171,0.00013698,2]
[353348971,1739789444278,-500.0,0.00013698,2]
[353348973,1739789444288,-500.0,0.00013698,2]
[353348975,1739789444297,-505.38850442,0.00013698,2]
[353348977,1739789444306,-1176.15,0.00013698,2]
[353348979,1739789444315,-200.0,0.00013698,2]